Cogmind - Beta 13 @@@ ROGUE MODE // 2024.04.22 @ 18:14:16 Player: Oldman Pu Result: Destroyed by G-47 Trooper with Particle Gun Performance ------------- Evolutions (0) 0 Regions Visited (1) 200 Robots Destroyed (14) 70 Value Destroyed (365) 365 Prototype IDs (0) 0 Alien Tech Used (0) 0 Bonus (0) 0 TOTAL SCORE: 635 Bonus ------- None Cogmind --------- Core Integrity 0/250 Matter 292/300 Energy 98/100 System Corruption 0% Temperature Cool (15) Movement Rolling (115) Ox1 Location -10/Materials Parts ------- > --- POWER (1) -------- (None) > --- PROPULSION (2) --- Compact Wheel Compact Wheel > --- UTILITY (2) ------ High-capacity Storage Unit > --- WEAPON (2) ------- Light Assault Rifle Light Assault Rifle > --- INVENTORY (20) --- Ion Engine Light Nuclear Core Wheel Improved Heat Sink Small Storage Unit Particle Gun Light Assault Rifle Light Assault Rifle Peak State ------------ > --- POWER ------------ Ion Engine > --- PROPULSION ------- Compact Wheel Compact Wheel > --- UTILITY ---------- High-capacity Storage Unit Weight Redist. System > --- WEAPON ----------- Light Assault Rifle Light Assault Rifle > --- INVENTORY -------- Ion Engine Light Nuclear Core Wheel Improved Heat Sink Small Storage Unit Particle Gun Light Assault Rifle [Rating: 9] Favorites ----------- Power Ion Engine Engine Ion Engine Propulsion Compact Wheel Wheel Compact Wheel Utility Small Storage Unit Device Weight Redist. System Storage Small Storage Unit Weapon Light Assault Rifle Ballistic Gun Light Assault Rifle Build | -11 -10 ------- Run | Yrd Mat Slots Evolved . | . . Power . | . . Propulsion . | . . Utility . | . . Weapon . | . . Parts Attached 14 | 6 8 Power 3 | 1 2 Engine 3 | 1 2 Core . | . . Reactor . | . . Propulsion 2 | 2 . Treads . | . . Leg . | . . Wheel 2 | 2 . Hover . | . . Flight . | . . Utility 5 | 1 4 Device 2 | . 2 Storage 3 | 1 2 Processor . | . . Hackware . | . . Protection . | . . Artifact . | . . Weapon 4 | 2 2 Energy Gun . | . . Energy Cannon . | . . Ballistic Gun 4 | 2 2 Ballistic Cannon . | . . Launcher . | . . Special Weapon . | . . Impact Weapon . | . . Slashing Weapon . | . . Piercing Weapon . | . . Special Melee Weapon . | . . Unidentified Prototypes . | . . Parts Lost 2 | . 2 Power 1 | . 1 Propulsion . | . . Utility 1 | . 1 Weapon . | . . Highest Loss Streak 2 | . 2 To Critical Strikes . | . . Average Slot Usage (%) 91 | . 91 Engine 13 | . 13 Wheel 28 | . 28 Device 2 | . 2 Storage 17 | . 17 Ballistic Gun 28 | . 28 Naked Turns . | . . Heaviest Build 67 | 12 67 Greatest Support 38 | 32 38 Greatest Overweight (x) 2 | . 2 Average Overweight (x) . | . . Largest Inventory Capacity 20 | 8 20 Average Capacity 12 | 7 12 Most Carried 8 | . 8 Average Carried 3 | . 3 Final Capacity 20 | 8 20 Final Carried 8 | . 8 Class Distribution -------------------- 93% | Mutant 6% | Scavenger-Mutant Dominant Class ---------------- Mutant | -10/Materials Resources | -11 -10 ----------- Run | Yrd Mat Matter Collected 444 | 147 297 Remotely . | . . Salvage Created 457 | . 457 Parts 38 | . 38 Haulers Intercepted 1 | . 1 Recyclers Shooed 2 | . 2 Parts Field Recycled . | . . Retrieved Matter . | . . Parts Self-Destructed . | . . Prevented . | . . Kills | -11 -10 ------- Run | Yrd Mat Combat Hostiles Destroyed 12 | . 12 Guns 12 | . 12 Classes Destroyed 4 | . 4 Worker 1 | . 1 Hauler 1 | . 1 Swarmer 3 | . 3 Grunt 9 | . 9 Best Kill Streak 4 | . 4 Combat Bots Only 4 | . 4 Max Kills in Single Turn 1 | . 1 Gunslinging . | . . Exploded . | . . Melee . | . . Uniques/NPCs Destroyed . | . . Combat | -11 -10 -------- Run | Yrd Mat Hostile Shots Fired 92 | . 92 Missed 29 | . 29 Damage Taken 735 | . 735 Core 258 | . 258 Absorbed by Shields . | . . Core Remaining (%) 100 | 100 . Volleys Fired 61 | . 61 Largest 2 | . 2 Hottest 40 | . 40 Shots Fired 122 | . 122 Gun 122 | . 122 Cannon . | . . Launcher . | . . Special . | . . Kinetic 122 | . 122 Thermal . | . . Explosive . | . . Electromagnetic . | . . Robot Hit Streak 21 | . 21 Robot Miss Streak 5 | . 5 Penetration Max . | . . Secondary Targets 1 | . 1 Max Gunslinging Chain 1 | . 1 Shots Hit Robots 90 | . 90 Core Hits 37 | . 37 Critical Kills . | . . Critical Parts Destroyed 1 | . 1 Critical Strikes 1 | . 1 Destroy 1 | . 1 Melee Attacks . | . . Impact . | . . Slashing . | . . Piercing . | . . Sneak Attacks . | . . Combat Hostiles . | . . Follow-up Attacks . | . . Damage Inflicted 737 | . 737 Guns 737 | . 737 Cannons . | . . Explosions . | . . Melee . | . . Ramming . | . . Kinetic 737 | . 737 Thermal . | . . Explosive . | . . Electromagnetic . | . . Impact . | . . Slashing . | . . Piercing . | . . Highest Corruption . | . . Average Corruption . | . . Corruption Purged . | . . Corruption Blocked . | . . Overload Shots . | . . Overflow Damage . | . . Projectiles . | . . Explosions . | . . Melee . | . . Knockbacks . | . . Impact . | . . Kinetic . | . . Secondary . | . . Self-Inflicted Damage . | . . Shots . | . . Rammed . | . . Targets Rammed . | . . Kicked . | . . Crushed . | . . Highest Temperature 36 | . 36 Average Temperature 10 | . 10 Received Heat Transfer 360 | . 360 Siege Activations . | . . Robots Corrupted . | . . Combat Hostiles . | . . Parts Fried . | . . Impact Corruptions . | . . Robots Melted . | . . Combat Hostiles . | . . Parts Melted . | . . Heat Transferred . | . . Parts Sabotaged . | . . Parts Stolen . | . . Parts Stripped . | . . Power Chain Reactions . | . . Alert | -11 -10 ------- Run | Yrd Mat Peak Influence 250 | . 250 Initial . | . . Average 75 | . 80 Maximum Alert Level 1 | . 1 Low Security (%) 87 | 100 86 Level 1 12 | . 13 Level 2 . | . . Level 3 . | . . Level 4 . | . . Level 5 . | . . High Security . | . . Max Security . | . . Squads Dispatched 3 | . 3 Investigation 1 | . 1 Extermination . | . . Reinforcement 2 | . 2 Assault . | . . Garrison . | . . Intercept . | . . Searches Triggered . | . . Construction Impeded . | . . Haulers Reinforced . | . . Active Scanning Responses . | . . Cargo Convoy Interrupts . | . . Stealth | -11 -10 --------- Run | Yrd Mat Distress Signals 2 | . 2 Communications Jammed . | . . Distress Signals . | . . Times Spotted 24 | . 24 Peak Tracking Total 6 | . 6 Tactical Retreats 2 | . 2 Traps | -11 -10 ------- Run | Yrd Mat Traps Triggered 1 | . 1 Indirectly . | . . Trap Hack Attempts . | . . Triggered . | . . Disarmed . | . . Reprogrammed . | . . Reused . | . . Traps Extracted . | . . Installed . | . . Triggered . | . . Machines | -11 -10 ---------- Run | Yrd Mat Machines Disabled . | . . Max in Single Turn . | . . Machines Repaired . | . . Machines Dismantled . | . . Machines Sabotaged . | . . Overloaded Fab Kills . | . . Hacking | -11 -10 --------- Run | Yrd Mat Machines Accessed 3 | . 3 Terminals 2 | . 2 Fabricators . | . . Repair Stations . | . . Recycling Units 1 | . 1 Scanalyzers . | . . Garrison Access . | . . Total Hacks 5 | . 5 Successful 4 | . 4 Failed 1 | . 1 Catastrophic . | . . Database Lockouts . | . . Manual . | . . Terminals 4 | . 4 Fabricators . | . . Repair Stations . | . . Recycling Units 1 | . 1 Scanalyzers . | . . Garrison Access . | . . Terminal Hacks 3 | . 3 Record 2 | . 2 Hauler Manifests 1 | . 1 Fabricator Hacks . | . . Repair Station Hacks . | . . Recycling Unit Hacks 1 | . 1 Report Inventory 1 | . 1 Scanalyzer . | . . Garrison Access Hacks . | . . Unauthorized Hacks . | . . Terminals . | . . Fabricators . | . . Repair Stations . | . . Recycling Units . | . . Scanalyzers . | . . Garrison Access . | . . Data Cores Recovered . | . . Used . | . . Hacking Detections 2 | . 2 Full Trace Events . | . . Feedback Events . | . . Feedback Blocked . | . . Robot Schematics Acquired . | . . Robots Built . | . . Authchips . | . . Time . | . . Total Robot Build Rating . | . . Part Schematics Acquired . | . . Parts Built . | . . Authchips . | . . Time . | . . Total Part Build Rating . | . . Parts Repaired . | . . Time . | . . Parts Recycled . | . . Recycled Matter . | . . Retrieved Matter . | . . Retrieved Components . | . . Parts Scanalyzed . | . . Part Schematics Acquired . | . . Parts Damaged . | . . Bothacking | -11 -10 ------------ Run | Yrd Mat Used RIF Installer . | . . Robots Hacked . | . . Non-combat . | . . Combat . | . . Robot Hacks Applied . | . . Relay Couplers Released . | . . Fabnet Peak Effective % . | . . Robots Rewired . | . . Allies Hacked . | . . Hacks Repelled . | . . Allies | -11 -10 -------- Run | Yrd Mat Total Allies . | . . Largest Group . | . . Highest-Rated Group . | . . Highest-Rated Ally . | . . Total Orders . | . . Ally Attacks . | . . Total Damage . | . . Kills . | . . Allies Corrupted . | . . Allies Melted . | . . Intel | -11 -10 ------- Run | Yrd Mat Robot Analysis Total . | . . Derelict Logs Recovered . | . . Drone Launches . | . . Drone Recoveries . | . . Exploration | -11 -10 ------------- Run | Yrd Mat Turns Passed 566 | 39 527 Spaces Moved 314 | 33 281 Core 5 | 5 . Treads . | . . Legs . | . . Wheels 309 | 28 281 Hover . | . . Flight . | . . Fastest Speed 50 | 50 100 Average Speed 100 | 92 101 Slowest Speed 130 | 100 130 Overloaded Moves . | . . Propulsion Burnouts . | . . Robots Hopped . | . . Cave-ins Triggered . | . . Exploration Rate (%) 31 | 3 59 Regions Visited 1 Branch Regions . Pre-discovered Areas . | . . Known Exits Taken . | . . Unknown Exits Taken 1 | 1 . Scrap Searched . | . . Spaces Dug . | . . Terrain Destroyed . | . . Melee . | . . Projectile . | . . AOE . | . . Terrain Rammed . | . . Walls Destroyed . | . . Machines Disabled . | . . Actions | -11 -10 --------- Run | Yrd Mat Total 462 | 38 424 Wait 64 | . 64 Move 313 | 32 281 Hop . | . . Pick Up 6 | . 6 Fast Attach 9 | 6 3 Attach . | . . Detach . | . . Swap 5 | . 5 Drop 4 | . 4 Fire 61 | . 61 Melee . | . . Ram . | . . Kick . | . . Crush . | . . Escape Stasis . | . . Rewire . | . . Trap . | . . Miscellaneous . | . . Route ------- -11/Scrapyard -10/Materials (discovered 3 exits: [*Mat x2] / [*Min]) History --------- Turn | Location | Event 26 | -11/Scrapyard | Discovered new exit (range 15) 40 | -11/Scrapyard | Entered Materials 113 | -10/Materials | Discovered new exit (range 3) 116 | -10/Materials | Discovered new exit (range 14) 315 | -10/Materials | Build established: Mutant 407 | -10/Materials | Core integrity fell below 50% 540 | -10/Materials | Derelicts attacked the area 540 | -10/Materials | Discovered new exit (range 16) 558 | -10/Materials | Core integrity fell below 20% 567 | -10/Materials | Destroyed by G-47 Trooper with Particle Gun Last Messages --------------- 00474_ K-01 Serf collects debris. 00482_ S-10 Pest destroyed. 00489_ R-06 Scavenger collects Flight Unit. 00497_ G-34 Mercenary destroyed. 00513_ S-10 Pest destroyed. 00518_ Acquired 35 matter. 00518_ R-06 Scavenger collects Aluminum Leg. 00518_ K-01 Serf collects debris. 00520_ Dropped Weight Redist. System. 00521_ Acquired Heat Sink. 00521_ K-01 Serf collects debris. 00526_ Acquired 15 matter. 00527_ K-01 Serf collects debris. 00527_ R-06 Scavenger collects Flight Unit. 00540_ ALERT: Derelict incursion detected, dispatching patrols to target area. 00540_ EXIT=FOUND 00559_ Ion Engine destroyed. 00560_ G-34 Mercenary destroyed. 00562_ Heat Sink destroyed. Map ----- +----------------------------------------------------+ | ??????????????# #??????????# | | ??????????????# #??????????# | | ?????????###### ##?????????# | | ????# ??? ## T#?????????# | | ????# """ ## ##?????????# | | ????# """ ## #??????????+ | | ????# """ [## #??????????# | | ????# ## #??????????# | | ????# """ ## #??????????? | | ????# """ ## #????????????? | | ????# """ ## #????????????? | | ????# [! =## %##???????????? | | ???#######+### ####????????? | | ???# % ??? | | ???# % ! ? | | ???# = ?? | | ???# ####### ## """ ""?? | | ???# #?????#######? """ "??? | | ???# #?????????????? """ ?"??? | | ???# ####??????????? ^ ?????? | | ???# !##??????????? ?????? | | ???# !#????????????"" ????? | | ???# !#????????????""?????? | | ???# r !#???????????????????? | | ???# w !#???????????????????? | | ???# g@ !##???????????????????? | | ???#gg%####????????????????????? | | ???# [#???????????????????????? | | ???# #???????????????????????? | | ???# #???????????????????????? | | ???# +???????????????????????? | | ???# #???????????????????????? | | ???# #???????????????????????? | | ???# ????????????????????????? | | ???# ????????????????????????? | | ???# ????????????????????????? | | ???# ????????????????????????? | | ???# ????????????????????????? | | ???# ????????????????????????? | | ???? < ????????????????????????? | | ???????????????????????????????? | | ???????????????????????????????? | | ???????????????????????????????? | | ???????????????????????????????? | | ???????????????????????????????? | | ???????????????????????????????? | | ???????????????????????????????? | | ???????????????????????????????? | | ???????????????????????????????? | | ???????????????????????????????? | +----------------------------------------------------+ Best States ------------- Heat Dissipation 35 Energy Generation 10 Energy Capacity 250 Matter Stores 300 Matter Capacity 300 Sight Range 16 Terrain Scan Density 10 Additional Mass Support 6 Evasion (%) 40 Item Schematics ----------------- None Robot Schematics ------------------ None Fabricated ------------ Nothing Alien Tech Used ----------------- None Achievements -------------- None Challenges ------------ None Game ------ Seed WarpExperimentalTearclaws Manual? 0 Play Time 00:07:58 Cumulative 275.8 hours Start 2024.04.22 @ 17:52:15 End 2024.04.22 @ 18:14:16 Sessions 1 Manual Loads 0 Difficulty Rogue Special Mode None Game No. 220 Rogue 208 Adventurer 12 Explorer 0 Win Type - Total 1 Types 1/0/0/0/0/0/0/0/0 Lore% 33 Gallery% 51 Achievement% 37 Wizard Run 0 Options --------- Layout 1 ASCII 0 Keyboard 0 Movement Mouse Keybinds 0 Fullscreen 1 Font 32/SmallcapsGlow Map View 77x35 Zoom Use 0% Tactical HUD 1 Map Filters NONE Filters NONE Steam 1 RUN: 517f7922-e71a-4cc0-b0d5-ed2c9f560c96